fUST/lending_fUST_20250709
["ID","MTS","AMOUNT","RATE_DAILY","PERIOD"]
[370416560,1752010244782,-2015.65,0.00019452,2]
[370416562,1752010244792,-163.42681601,0.00019452,2]
[370416564,1752010244804,-296.57318399,0.00019452,2]
[370416566,1752010244814,-460.0,0.00019452,2]
[370416568,1752010244824,-245.07348472,0.00019452,2]
[370416587,1752010245002,-214.92651528,0.00019452,2]
[370416590,1752010245014,-460.0,0.00019452,2]
[370416592,1752010245024,-1468.14,0.00019452,2]
[370416594,1752010245034,-460.0,0.00019452,2]
[370416596,1752010245043,-269.23486741,0.00019452,2]
[370416598,1752010245052,-549.65639665,0.00019452,2]
[370416600,1752010245062,-669.47,0.00019452,2]
[370416602,1752010245071,-460.0,0.00019452,2]
[370416604,1752010245080,-1226.62,0.00019452,2]
[370416606,1752010245090,-530.68,0.00019452,2]
[370416608,1752010245099,-460.0,0.00019452,2]
[370416610,1752010245108,-460.0,0.00019452,2]
[370416612,1752010245118,-460.0,0.00019452,2]
[370416614,1752010245127,-460.0,0.00019452,2]
[370416616,1752010245136,-460.0,0.00019452,2]
[370416618,1752010245146,-460.0,0.00019452,2]
[370416620,1752010245155,-460.0,0.00019452,2]
[370416622,1752010245164,-1725.45,0.00019452,2]
[370416624,1752010245173,-460.0,0.00019452,2]
[370416626,1752010245183,-460.0,0.00019452,2]
[370416628,1752010245192,-1491.33,0.00019452,2]
[370416630,1752010245205,-2321.08,0.00019452,2]
[370416632,1752010245215,-1284.33,0.00019452,2]
[370416634,1752010245224,-815.49,0.00019452,2]
[370416636,1752010245234,-571.45,0.00019452,2]
[370416638,1752010245243,-460.0,0.00019452,2]
[370416640,1752010245252,-460.0,0.00019452,2]
[370416642,1752010245262,-568.12080442,0.00019452,2]
[370416644,1752010245272,-595.24,0.00019452,2]
[370416646,1752010245282,-460.0,0.00019452,2]
[370416648,1752010245291,-460.0,0.00019452,2]
[370416650,1752010245301,-540.92592001,0.00019452,2]
[370416715,1752010246039,-889.06369796,0.00019352,2]
[370416717,1752010246050,-295.25407999,0.00019452,2]
[370416719,1752010246060,-460.0,0.00019452,2]
[370416721,1752010246069,-460.0,0.00019452,2]
[370416723,1752010246079,-2393.08,0.00019452,2]
[370416725,1752010246089,-703.37,0.00019452,2]
[370416727,1752010246098,-460.0,0.00019452,2]
[370416729,1752010246108,-460.0,0.00019452,2]
[370416731,1752010246118,-1296.09,0.00019452,2]
[370416733,1752010246127,-460.0,0.00019452,2]
[370416735,1752010246137,-460.0,0.00019452,2]
[370416737,1752010246147,-460.0,0.00019452,2]
[370416739,1752010246156,-460.0,0.00019452,2]
[370416741,1752010246166,-951.87,0.00019452,2]
[370416743,1752010246176,-460.0,0.00019452,2]
[370416745,1752010246186,-460.0,0.00019452,2]
[370416747,1752010246195,-825.78,0.00019452,2]
[370416749,1752010246209,-460.0,0.00019452,2]
[370416751,1752010246218,-460.0,0.00019452,2]
[370416753,1752010246227,-460.0,0.00019452,2]
[370416755,1752010246237,-460.0,0.00019452,2]
[370416757,1752010246247,-460.0,0.00019452,2]
[370416759,1752010246256,-460.0,0.00019452,2]
[370416761,1752010246265,-460.0,0.00019452,2]
[370416763,1752010246274,-151.0,0.00019479,2]
[370416765,1752010246284,-1000.0,0.000195,2]
[370416767,1752010246293,-151.0,0.00019507,2]
[370416769,1752010246303,-222.14460977,0.00019534,2]
[370416771,1752010246312,-163.082624,0.00019599,2]
[370416773,1752010246321,-7495.14355069,0.00019626,2]
[370416775,1752010246338,-723.34272472,0.00019489,2]
[370416778,1752010246349,-165.72097324,0.00019489,2]
[370416780,1752010246359,-184.03419975,0.00019626,2]
[370416782,1752010246370,-1188.63002315,0.00019626,2]
[370416784,1752010246383,-2162.53910812,0.00019626,2]
[370416786,1752010246395,-333.67086873,0.00019626,2]
[370419301,1752010466021,200.0,0.0002739,120]
[370419302,1752010472574,400.0,0.0002739,120]
[370419304,1752010524886,668.64154,0.00013699,2]
[370419305,1752010651749,2072.1513846,0.00018032,2]
[370419306,1752010653933,393.86487083,0.00018031,2]
[370419307,1752010685633,335.88902282,0.00018151,2]
[370419308,1752010794333,24900.0,0.00018021,2]
[370419309,1752010837138,646.0214703,0.00018007,2]
[370419310,1752011080075,179.78425889,0.00017948,2]
[370419311,1752011278207,208.273142,0.00018073,2]
[370419342,1752011432293,-500.0,0.00018191,2]
[370419344,1752011432304,-1202.43555418,0.00018972,2]
[370419346,1752011432314,-1000.0,0.00019,2]
[370419349,1752011432324,-302.66710251,0.00019,2]
[370419351,1752011432334,-300.0,0.00019071,2]
[370419353,1752011432344,-300.0,0.00019071,2]
[370419355,1752011432354,-1200.0,0.00019071,2]
[370419357,1752011432367,-500.0,0.00019072,2]
[370419358,1752011432376,-489.16432978,0.00019072,2]
[370419361,1752011432386,-500.0,0.00019072,2]
[370419363,1752011432395,-500.0,0.00019072,2]
[370419364,1752011432404,-500.0,0.00019072,2]
[370419367,1752011432414,-396.99574037,0.00019072,2]
[370419369,1752011432424,-500.0,0.00019072,2]
[370419371,1752011432434,-500.0,0.00019072,2]
[370419373,1752011432444,-500.0,0.00019072,2]
[370419375,1752011432453,-500.0,0.00019072,2]
[370419377,1752011432464,-500.0,0.00019072,2]
[370419378,1752011432473,-500.0,0.00019072,2]
[370419381,1752011432483,-398.65569863,0.00019072,2]
[370419383,1752011432492,-500.0,0.00019072,2]
[370419385,1752011432502,-431.01727268,0.00019072,2]
[370419389,1752011432514,-68.98272732,0.00019072,2]
[370419392,1752011432523,-500.0,0.00019072,2]
[370419395,1752011432533,-327.60928466,0.00019072,2]
[370419397,1752011432542,-395.71397889,0.00019072,2]
[370419399,1752011432552,-500.0,0.00019072,2]
[370419401,1752011432561,-500.0,0.00019072,2]
[370419403,1752011432570,-500.0,0.00019072,2]
[370419405,1752011432580,-500.0,0.00019072,2]
[370419407,1752011432590,-500.0,0.00019072,2]
[370419409,1752011432599,-500.0,0.00019072,2]
[370419411,1752011432609,-500.0,0.00019072,2]
[370419413,1752011432618,-500.0,0.00019072,2]
[370419415,1752011432628,-500.0,0.00019072,2]
[370419423,1752011432638,-500.0,0.00019072,2]
[370419424,1752011432859,-500.0,0.00019072,2]
[370419425,1752011432868,-500.0,0.00019072,2]
[370419426,1752011432878,-500.0,0.00019072,2]
[370419427,1752011432888,-500.0,0.00019072,2]
[370419428,1752011432898,-500.0,0.00019072,2]
[370419429,1752011432908,-500.0,0.00019072,2]
[370419430,1752011432918,-500.0,0.00019072,2]
[370419431,1752011432928,-500.0,0.00019072,2]
[370419432,1752011432939,-500.0,0.00019072,2]
[370419433,1752011432948,-500.0,0.00019072,2]
[370419434,1752011432959,-500.0,0.00019072,2]
[370419435,1752011432969,-500.0,0.00019072,2]
[370419436,1752011432978,-500.0,0.00019072,2]
[370419437,1752011432988,-500.0,0.00019072,2]
[370419438,1752011432998,-500.0,0.00019072,2]
[370419439,1752011433008,-444.65761446,0.00019072,2]
[370419440,1752011433018,-500.0,0.00019072,2]
[370419442,1752011433027,-500.0,0.00019072,2]
[370419444,1752011433037,-280.26280471,0.00019072,2]
[370419447,1752011433047,-603.0,0.00019072,2]
[370419450,1752011433057,-500.0,0.00019072,2]
[370419452,1752011433066,-500.0,0.00019072,2]
[370419454,1752011433076,-500.0,0.00019072,2]
[370419456,1752011433086,-500.0,0.00019072,2]
[370419458,1752011433095,-500.0,0.00019072,2]
[370419460,1752011433104,-500.0,0.00019072,2]
[370419462,1752011433114,-500.0,0.00019072,2]
[370419464,1752011433123,-500.0,0.00019072,2]
[370419466,1752011433132,-500.0,0.00019072,2]
[370419468,1752011433141,-407.24566147,0.00019072,2]
[370419470,1752011433150,-475.36883605,0.00019072,2]
[370419472,1752011433159,-33311.17183801,0.00019073,2]
[370419631,1752011438272,-10460.62712543,0.00019073,2]
[370419632,1752011438283,-1200.0,0.00019073,2]
[370419633,1752011438294,-915.97476538,0.00019073,2]
[370419634,1752011438310,-387.08211006,0.00019073,2]
[370419635,1752011438320,-500.0,0.00019076,2]
[370419636,1752011438331,-330.40614776,0.00019076,2]
[370419637,1752011438341,-500.0,0.00019076,2]
[370419638,1752011438350,-500.0,0.00019076,2]
[370419639,1752011438360,-449.19875583,0.00019076,2]
[370419640,1752011438369,-500.0,0.00019076,2]
[370419641,1752011438378,-500.0,0.00019076,2]
[370419642,1752011438388,-500.0,0.00019076,2]
[370419643,1752011438398,-500.0,0.00019076,2]
[370419644,1752011438407,-500.0,0.00019076,2]
[370419646,1752011438417,-31283.91162327,0.00019077,2]
[370419648,1752011438429,-745.10319183,0.00019077,2]
[370419649,1752011438513,-161674.88396359,0.00019077,2]
[370419650,1752011438523,-500.0,0.00019173,2]
[370419651,1752011438533,-500.0,0.00019173,2]
[370419652,1752011438543,-500.0,0.00019173,2]
[370419653,1752011438553,-500.0,0.00019173,2]
[370419654,1752011438562,-500.0,0.00019173,2]
[370419655,1752011438572,-500.0,0.00019173,2]
[370419656,1752011438581,-500.0,0.00019173,2]
[370419657,1752011438590,-503.02592317,0.00019173,2]
[370419658,1752011438600,-500.0,0.00019173,2]
[370419659,1752011438610,-500.0,0.00019173,2]
[370419660,1752011438620,-500.43844311,0.00019173,2]
[370419661,1752011438629,-500.0,0.00019173,2]
[370419662,1752011438638,-500.0,0.00019173,2]
[370419663,1752011438648,-500.0,0.00019173,2]
[370419664,1752011438658,-500.0,0.00019173,2]
[370419665,1752011438669,-500.0,0.00019173,2]
[370419666,1752011438678,-500.0,0.00019173,2]
[370419667,1752011438688,-157.150149,0.00019173,2]
[370419668,1752011438699,-500.0,0.00019173,2]
[370419669,1752011438710,-460.0,0.00019178,2]
[370419670,1752011438720,-315.85977734,0.00019178,2]
[370419671,1752011438730,-460.0,0.00019178,2]
[370419672,1752011438740,-460.0,0.00019178,2]
[370419673,1752011438750,-460.0,0.00019178,2]
[370419674,1752011438760,-507.15,0.00019178,2]
[370419675,1752011438771,-460.0,0.00019178,2]
[370419676,1752011438781,-151.0,0.00019178,2]
[370419677,1752011438792,-460.0,0.00019178,2]
[370419678,1752011438803,-460.0,0.00019178,2]
[370419679,1752011438812,-460.0,0.00019178,2]
[370419680,1752011438822,-460.0,0.00019178,2]
[370419681,1752011438832,-460.0,0.00019178,2]
[370419682,1752011438842,-460.0,0.00019178,2]
[370419683,1752011438851,-460.0,0.00019178,2]
[370419684,1752011438861,-153.63,0.00019178,2]
[370419685,1752011438871,-460.0,0.00019178,2]
[370419686,1752011438881,-460.0,0.00019178,2]
[370419687,1752011438890,-460.0,0.00019178,2]
[370419688,1752011438901,-460.0,0.00019178,2]
[370419689,1752011438911,-460.0,0.00019178,2]
[370419690,1752011438921,-460.0,0.00019178,2]
[370419691,1752011438932,-460.0,0.00019178,2]
[370419692,1752011438942,-591.18,0.00019178,2]
[370419693,1752011438951,-460.0,0.00019178,2]
[370419694,1752011438961,-460.0,0.00019178,2]
[370419695,1752011438970,-460.0,0.00019178,2]
[370419696,1752011438980,-517.26472086,0.00019178,2]
[370419697,1752011438991,-438.02941369,0.00019178,2]
[370419698,1752011439000,-460.0,0.00019178,2]
[370419699,1752011439010,-531.39,0.00019178,2]
[370419700,1752011439020,-460.0,0.00019178,2]
[370419701,1752011439030,-460.0,0.00019178,2]
[370419702,1752011439041,-460.0,0.00019178,2]
[370419703,1752011439051,-151.0,0.00019178,2]
[370419704,1752011439061,-460.0,0.00019178,2]
[370419705,1752011439071,-209.79502532,0.00019178,2]
[370419706,1752011439081,-460.0,0.00019178,2]
[370419707,1752011439092,-460.0,0.00019178,2]
[370419708,1752011439101,-507.02,0.00019178,2]
[370419709,1752011439111,-460.0,0.00019178,2]
[370419710,1752011439120,-495.63,0.00019178,2]
[370419711,1752011439130,-460.0,0.00019178,2]
[370419712,1752011439140,-460.0,0.00019178,2]
[370419713,1752011439149,-460.0,0.00019178,2]
[370419714,1752011439159,-460.0,0.00019178,2]
[370419715,1752011439168,-460.0,0.00019178,2]
[370419716,1752011439181,-460.0,0.00019178,2]
[370419717,1752011439190,-578.38,0.00019178,2]
[370419718,1752011439200,-460.0,0.00019178,2]
[370419719,1752011439209,-460.0,0.00019178,2]
[370419720,1752011439219,-460.0,0.00019178,2]
[370419721,1752011439228,-460.0,0.00019178,2]
[370419722,1752011439238,-151.0,0.00019178,2]
[370419723,1752011439247,-460.0,0.00019178,2]
[370419724,1752011439257,-460.0,0.00019178,2]
[370419725,1752011439267,-231.681584,0.00019178,2]
[370419726,1752011439276,-231.681584,0.00019178,2]
[370419727,1752011439285,-460.0,0.00019178,2]
[370419728,1752011439295,-551.04067024,0.00019178,2]
[370419729,1752011439306,-460.0,0.00019178,2]
[370419730,1752011439315,-460.0,0.00019178,2]
[370419731,1752011439325,-460.0,0.00019178,2]
[370419732,1752011439335,-151.0,0.00019178,2]
[370419733,1752011439345,-460.0,0.00019178,2]
[370419734,1752011439355,-460.0,0.00019178,2]
[370419735,1752011439364,-151.0,0.00019178,2]
[370419736,1752011439374,-400.81971206,0.00019178,2]
[370419737,1752011439384,-460.0,0.00019178,2]
[370419738,1752011439393,-151.0,0.00019178,2]
[370419739,1752011439403,-460.0,0.00019178,2]
[370419740,1752011439413,-460.0,0.00019178,2]
[370419741,1752011439423,-460.0,0.00019178,2]
[370419742,1752011439433,-460.0,0.00019178,2]
[370419743,1752011439445,-460.0,0.00019178,2]
[370419744,1752011439455,-460.0,0.00019178,2]
[370419745,1752011439465,-460.0,0.00019178,2]
[370419746,1752011439476,-460.0,0.00019178,2]
[370419747,1752011439487,-460.0,0.00019178,2]
[370419748,1752011439497,-460.0,0.00019178,2]
[370419749,1752011439506,-460.0,0.00019178,2]
[370419750,1752011439515,-460.0,0.00019178,2]
[370419751,1752011439525,-460.0,0.00019178,2]
[370419752,1752011439535,-460.0,0.00019178,2]
[370419753,1752011439545,-153.17665,0.00019178,2]
[370419754,1752011439554,-460.0,0.00019178,2]
[370419755,1752011439564,-198.55526453,0.00019178,2]
[370419756,1752011439574,-460.0,0.00019178,2]
[370419757,1752011439584,-314.45881185,0.00019178,2]
[370419758,1752011439595,-210.97,0.00019178,2]
[370419759,1752011439604,-460.0,0.00019178,2]
[370419760,1752011439614,-500.0,0.00019178,2]
[370419761,1752011439624,-500.0,0.00019178,2]
[370419762,1752011439633,-460.0,0.00019178,2]
[370419763,1752011439643,-169.112103,0.00019178,2]
[370419764,1752011439653,-169.112103,0.00019178,2]
[370419765,1752011439663,-460.0,0.00019178,2]
[370419766,1752011439673,-460.0,0.00019178,2]
[370419767,1752011439682,-460.0,0.00019178,2]
[370419768,1752011439692,-460.0,0.00019178,2]
[370419769,1752011439702,-460.0,0.00019178,2]
[370419770,1752011439711,-151.0,0.00019178,2]
[370419771,1752011439721,-460.0,0.00019178,2]
[370419772,1752011439730,-112.31977703,0.00019178,2]
[370419773,1752011439748,-347.68022297,0.00019178,2]
[370419774,1752011439758,-460.0,0.00019178,2]
[370419776,1752011439768,-460.0,0.00019178,2]
[370419777,1752011439778,-500.0,0.00019178,2]
[370419778,1752011439787,-460.0,0.00019178,2]
[370419779,1752011439797,-160.4,0.00019178,2]
[370419780,1752011439806,-602.62577193,0.00019178,2]
[370419781,1752011439816,-460.0,0.00019178,2]
[370419782,1752011439825,-460.0,0.00019178,2]
[370419783,1752011439835,-460.0,0.00019178,2]
[370419784,1752011439844,-460.0,0.00019178,2]
[370419785,1752011439854,-460.0,0.00019178,2]
[370419786,1752011439863,-460.0,0.00019178,2]
[370419787,1752011439872,-151.0,0.00019178,2]
[370419788,1752011439881,-151.0,0.00019178,2]
[370419789,1752011439891,-460.0,0.00019178,2]
[370419790,1752011439900,-460.0,0.00019178,2]
[370419791,1752011439909,-460.0,0.00019178,2]
[370419792,1752011439919,-460.0,0.00019178,2]
[370419793,1752011439928,-460.0,0.00019178,2]
[370419794,1752011439937,-460.0,0.00019178,2]
[370419795,1752011439947,-460.0,0.00019178,2]
[370419796,1752011439956,-176.67890996,0.00019178,2]
[370419797,1752011439966,-460.0,0.00019178,2]
[370419798,1752011439975,-460.0,0.00019178,2]
[370419799,1752011439984,-460.0,0.00019178,2]
[370419800,1752011439994,-460.0,0.00019178,2]
[370419801,1752011440003,-460.0,0.00019178,2]
[370419802,1752011440013,-460.0,0.00019178,2]
[370419803,1752011440022,-383.18436601,0.00019178,2]
[370419804,1752011440031,-460.0,0.00019178,2]
[370419805,1752011440041,-460.0,0.00019178,2]
[370419806,1752011440051,-460.0,0.00019178,2]
[370419807,1752011440061,-564.62,0.00019178,2]
[370419808,1752011440071,-151.0,0.00019178,2]
[370419809,1752011440080,-505.27,0.00019178,2]
[370419810,1752011440089,-151.0,0.00019178,2]
[370419811,1752011440098,-151.0,0.00019178,2]
[370419812,1752011440108,-520.12,0.00019178,2]
[370419813,1752011440117,-460.0,0.00019178,2]
[370419814,1752011440126,-460.0,0.00019178,2]
[370419815,1752011440136,-721.72,0.00019178,2]
[370419816,1752011440145,-460.0,0.00019178,2]
[370419817,1752011440154,-460.0,0.00019178,2]
[370419818,1752011440164,-460.0,0.00019178,2]
[370419819,1752011440173,-460.0,0.00019178,2]
[370419820,1752011440185,-460.0,0.00019178,2]
[370419821,1752011440195,-460.0,0.00019178,2]
[370419822,1752011440205,-460.0,0.00019178,2]
[370419823,1752011440214,-460.0,0.00019178,2]
[370419824,1752011440226,-258.42134103,0.00019178,2]
[370419825,1752011440235,-460.0,0.00019178,2]
[370419826,1752011440244,-460.0,0.00019178,2]
[370419827,1752011440254,-460.0,0.00019178,2]
[370419828,1752011440264,-460.0,0.00019178,2]
[370419829,1752011440274,-460.0,0.00019178,2]
[370419830,1752011440283,-460.0,0.00019178,2]
[370419831,1752011440292,-460.0,0.00019178,2]
[370419832,1752011440303,-460.0,0.00019178,2]
[370419833,1752011440312,-460.0,0.00019178,2]
[370419834,1752011440322,-460.0,0.00019178,2]
[370419835,1752011440331,-151.0,0.00019178,2]
[370419836,1752011440340,-460.0,0.00019178,2]
[370419837,1752011440350,-230.302688,0.00019178,2]
[370419838,1752011440360,-151.0,0.00019178,2]
[370419839,1752011440369,-997.67,0.00019178,2]
[370419840,1752011440378,-230.302688,0.00019178,2]
[370419841,1752011440388,-463.97965708,0.00019178,2]
[370419842,1752011440397,-151.0,0.00019178,2]
[370419843,1752011440406,-460.0,0.00019178,2]
[370419844,1752011440416,-460.0,0.00019178,2]
[370419845,1752011440426,-593.09283682,0.00019178,2]
[370419846,1752011440435,-151.0,0.00019178,2]
[370419847,1752011440445,-460.0,0.00019178,2]
[370419848,1752011440454,-460.0,0.00019178,2]
[370419849,1752011440464,-151.0,0.00019178,2]
[370419850,1752011440474,-460.0,0.00019178,2]
[370419851,1752011440483,-460.0,0.00019178,2]
[370419852,1752011440492,-2403.43,0.00019178,2]
[370419853,1752011440502,-476.16,0.00019178,2]
[370419854,1752011440512,-151.0,0.00019178,2]
[370419855,1752011440521,-460.0,0.00019178,2]
[370419856,1752011440531,-460.0,0.00019178,2]
[370419857,1752011440540,-460.0,0.00019178,2]
[370419859,1752011440550,-460.0,0.00019178,2]
[370419861,1752011440559,-1142.17,0.00019178,2]
[370419863,1752011440569,-460.0,0.00019178,2]
[370419864,1752011440578,-151.0,0.00019178,2]
[370419865,1752011440588,-460.0,0.00019178,2]
[370419867,1752011440597,-460.0,0.00019178,2]
[370419869,1752011440606,-460.0,0.00019178,2]
[370419870,1752011440615,-460.0,0.00019178,2]
[370419872,1752011440625,-460.0,0.00019178,2]
[370419874,1752011440634,-460.0,0.00019178,2]
[370419875,1752011440643,-532.15,0.00019178,2]
[370419876,1752011440653,-463.64439017,0.00019178,2]
[370419877,1752011440664,-460.0,0.00019178,2]
[370419878,1752011440673,-151.0,0.00019178,2]
[370419879,1752011440683,-460.0,0.00019178,2]
[370419880,1752011440692,-460.0,0.00019178,2]
[370419881,1752011440701,-460.0,0.00019178,2]
[370419882,1752011440711,-151.0,0.00019178,2]
[370419883,1752011440720,-460.0,0.00019178,2]
[370419884,1752011440730,-460.0,0.00019178,2]
[370419885,1752011440739,-460.0,0.00019178,2]
[370419886,1752011440748,-460.0,0.00019178,2]
[370419887,1752011440757,-460.0,0.00019178,2]
[370419888,1752011440767,-460.0,0.00019178,2]
[370419889,1752011440775,-460.0,0.00019178,2]
[370419890,1752011440785,-577.76,0.00019178,2]
[370419891,1752011440794,-460.0,0.00019178,2]
[370419892,1752011440803,-541.96,0.00019178,2]
[370419893,1752011440942,-460.0,0.00019178,2]
[370419894,1752011440952,-460.0,0.00019178,2]
[370419895,1752011440961,-460.0,0.00019178,2]
[370419896,1752011440970,-460.0,0.00019178,2]
[370419897,1752011440979,-460.0,0.00019178,2]
[370419898,1752011440988,-151.0,0.00019178,2]
[370419899,1752011440998,-561.35536003,0.00019178,2]
[370419900,1752011441007,-460.0,0.00019178,2]
[370419901,1752011441016,-460.0,0.00019178,2]
[370419902,1752011441025,-460.0,0.00019178,2]
[370419903,1752011441034,-151.0,0.00019178,2]
[370419904,1752011441043,-151.0,0.00019178,2]
[370419905,1752011441053,-460.0,0.00019178,2]
[370419906,1752011441062,-460.0,0.00019178,2]
[370419907,1752011441072,-460.0,0.00019178,2]
[370419908,1752011441081,-460.0,0.00019178,2]
[370419909,1752011441090,-1827.32,0.00019178,2]
[370419910,1752011441099,-413.04566988,0.00019178,2]
[370419911,1752011441464,-215.63433012,0.00019178,2]
[370419912,1752011441473,-460.0,0.00019178,2]
[370419913,1752011441484,-394.611224,0.00019178,2]
[370419914,1752011441496,-65.388776,0.00019178,2]
[370419915,1752011441505,-392.58367564,0.00019178,2]
[370419916,1752011441516,-1455.48728417,0.00019178,2]
[370419917,1752011441527,-354.79310828,0.00019178,2]
[370419918,1752011441540,-637.73593191,0.00019178,2]
[370419919,1752011441550,-151.0,0.00019178,2]
[370419920,1752011441559,-460.0,0.00019178,2]
[370419921,1752011441569,-240.64818,0.00019178,2]
[370419922,1752011441579,-460.0,0.00019178,2]
[370419923,1752011441588,-460.0,0.00019178,2]
[370419924,1752011441597,-498.95,0.00019178,2]
[370419925,1752011441607,-607.02,0.00019178,2]
[370419926,1752011441617,-2035.61,0.00019178,2]
[370419927,1752011441626,-157.90001388,0.00019178,2]
[370419944,1752011443469,-302.09998612,0.00019178,2]
[370419945,1752011443478,-460.0,0.00019178,2]
[370419946,1752011443488,-1682.05,0.00019178,2]
[370419947,1752011443497,-460.0,0.00019178,2]
[370419949,1752011443506,-460.0,0.00019178,2]
[370419950,1752011443516,-151.0,0.00019178,2]
[370419951,1752011443526,-151.0,0.00019178,2]
[370419952,1752011443536,-460.0,0.00019178,2]
[370419953,1752011443546,-460.0,0.00019178,2]
[370419954,1752011443555,-460.0,0.00019178,2]
[370419955,1752011443565,-500.0,0.00019178,2]
[370419956,1752011443575,-471.04,0.00019178,2]
[370419957,1752011443585,-1864.32,0.00019178,2]
[370419959,1752011443594,-460.0,0.00019178,2]
[370419960,1752011443603,-500.0,0.00019178,2]
[370419961,1752011443612,-500.0,0.00019178,2]
[370419962,1752011443622,-460.0,0.00019178,2]
[370419963,1752011443631,-724.28,0.00019178,2]
[370419964,1752011443640,-460.0,0.00019178,2]
[370419966,1752011443649,-460.0,0.00019178,2]
[370419967,1752011443659,-200.0,0.00019178,2]
[370419968,1752011443668,-460.0,0.00019178,2]
[370419969,1752011443678,-153.449117,0.00019178,2]
[370419970,1752011443687,-537.51,0.00019178,2]
[370419971,1752011443696,-460.0,0.00019178,2]
[370419972,1752011443706,-460.0,0.00019178,2]
[370419973,1752011443715,-460.0,0.00019178,2]
[370419974,1752011443724,-460.0,0.00019178,2]
[370419975,1752011443733,-460.0,0.00019178,2]
[370419976,1752011443743,-460.0,0.00019178,2]
[370419977,1752011443752,-460.0,0.00019178,2]
[370419978,1752011443761,-460.0,0.00019178,2]
[370419979,1752011443770,-501.74750815,0.00019178,2]
[370419980,1752011443780,-460.0,0.00019178,2]
[370419981,1752011443789,-460.0,0.00019178,2]
[370419982,1752011443798,-460.0,0.00019178,2]
[370419983,1752011443808,-460.0,0.00019178,2]
[370419984,1752011443817,-460.0,0.00019178,2]
[370419985,1752011443827,-460.0,0.00019178,2]
[370419986,1752011443838,-164.900254,0.00019178,2]
[370419987,1752011443848,-460.0,0.00019178,2]
[370419988,1752011443858,-460.0,0.00019178,2]
[370419989,1752011443868,-447.36686639,0.00019178,2]
[370419990,1752011443878,-1545.13,0.00019178,2]
[370419991,1752011443888,-1069.77,0.00019178,2]
[370419992,1752011443898,-460.0,0.00019178,2]
[370419993,1752011443908,-460.0,0.00019178,2]
[370419994,1752011443918,-541.24278872,0.00019178,2]
[370419995,1752011443929,-460.0,0.00019178,2]
[370419996,1752011443938,-460.0,0.00019178,2]
[370419997,1752011443948,-460.0,0.00019178,2]
[370419998,1752011443958,-957.5,0.00019178,2]
[370419999,1752011443968,-460.0,0.00019178,2]
[370420000,1752011443977,-460.0,0.00019178,2]
[370420001,1752011443986,-222.6890901,0.00019178,2]
[370420002,1752011443996,-460.0,0.00019178,2]
[370420003,1752011444005,-460.0,0.00019178,2]
[370420004,1752011444015,-460.0,0.00019178,2]
[370420005,1752011444026,-460.0,0.00019178,2]
[370420006,1752011444036,-1099.1,0.00019178,2]
[370420007,1752011444046,-460.0,0.00019178,2]
[370420008,1752011444055,-460.0,0.00019178,2]